bitfinex/quotes_BTCUSD_20220211
["timestamp","ask_amount","ask_price","bid_price","bid_amount"]
[1644572105969,0.31231751,43353.0,43350.0,0.10359]
[1644572106167,0.31231751,43353.0,43350.0,0.0459]
[1644572106366,0.16140488,43351.0,43350.0,0.0459]
[1644572107066,0.01140488,43356.0,43350.0,0.0459]
[1644572107266,0.01140488,43356.0,43351.0,0.309786]
[1644572107267,0.0006119,43353.0,43351.0,0.309786]
[1644572107867,0.0006119,43353.0,43351.0,0.309784]
[1644572108066,0.0006119,43353.0,43350.0,0.103591]
[1644572108067,0.31083507,43353.0,43350.0,0.103591]
[1644572108266,0.31022317,43353.0,43350.0,0.0459]
[1644572109524,0.25448035,43359.0,43350.0,0.0459]
[1644572109525,0.19678635,43361.0,43350.0,0.0459]
[1644572109726,0.00061189,43354.0,43351.0,0.309784]
[1644572110023,0.00061189,43354.0,43353.0,0.309768]
[1644572110223,0.00061189,43354.0,43353.0,0.0459]
[1644572110623,0.26985246,43355.0,43353.0,0.0459]
[1644572111424,0.19894517,43356.0,43353.0,0.0459]
[1644572111625,0.00061188,43356.0,43353.0,0.0459]
[1644572111825,0.01140488,43360.0,43353.0,0.0459]
[1644572112025,0.19678635,43362.0,43353.0,0.0459]
[1644572112226,0.00061187,43357.0,43354.0,0.30976]
[1644572112425,0.00061187,43357.0,43355.0,0.0459]
[1644572112626,0.00061187,43357.0,43356.0,0.3405202]
[1644572113026,0.32541293,43358.0,43356.0,0.3405202]
[1644572113767,0.21035003,43359.0,43356.0,0.3405202]
[1644572113973,0.21035003,43359.0,43357.0,0.0459]
[1644572113974,0.00061186,43359.0,43357.0,0.0459]
[1644572114170,0.24598294,43366.0,43358.0,0.64032055]
[1644572114171,0.19678635,43366.0,43358.0,0.64032055]
[1644572114371,0.24598294,43369.0,43358.0,0.33059255]
[1644572114372,0.19678635,43369.0,43358.0,0.33059255]
[1644572114568,0.19678635,43368.0,43360.0,0.309599]
[1644572114769,0.19678635,43368.0,43362.0,0.309583]
[1644572114970,0.01140488,43370.0,43361.0,0.37434073]
[1644572114971,0.01140488,43370.0,43363.0,0.0459]
[1644572115271,0.6321582,43372.0,43361.0,0.38611273]
[1644572115272,0.19678635,43372.0,43365.0,0.40374619]
[1644572115470,0.19678635,43371.0,43366.0,0.0459]
[1644572115668,0.01140488,43370.0,43367.0,0.309541]
[1644572115867,0.01140488,43370.0,43368.0,0.0459]
[1644572116068,0.00042804,43369.0,43368.0,0.0459]
[1644572116271,0.00042804,43369.0,43368.0,0.355434]
[1644572116669,0.01140488,43370.0,43368.0,0.355434]
[1644572116868,0.24598294,43374.0,43368.0,0.0459]
[1644572116869,0.19678635,43373.0,43368.0,0.0459]
[1644572117120,0.00065867,43371.0,43368.0,0.0459]
[1644572117319,0.00065867,43371.0,43369.0,0.309527]
[1644572117522,0.01140488,43370.0,43369.0,0.309527]
[1644572117720,0.01140488,43370.0,43369.0,0.355427]
[1644572118520,0.01140488,43370.0,43369.0,0.0459]
[1644572118923,0.01140488,43370.0,43369.0,0.355426]
[1644572119321,0.00065817,43372.0,43369.0,0.355426]
[1644572119522,0.19744452,43372.0,43369.0,0.0459]
[1644572120022,0.29812591,43371.0,43369.0,0.0459]
[1644572120225,0.44812591,43371.0,43369.0,0.0459]
[1644572120425,0.64491226,43371.0,43369.0,0.0459]
[1644572120625,0.01140488,43370.0,43369.0,0.0459]
[1644572121267,0.64491226,43371.0,43369.0,0.355425]
[1644572121268,0.19678635,43371.0,43369.0,0.355425]
[1644572121472,0.19678635,43374.0,43369.0,0.0459]
[1644572121770,0.01140488,43370.0,43364.0,0.5744]
[1644572121971,0.01140488,43370.0,43360.0,0.215328]
[1644572121972,0.01140488,43365.0,43360.0,0.1]
[1644572122270,0.01140488,43362.0,43360.0,0.0459]
[1644572122473,0.01140488,43361.0,43353.0,0.0459]
[1644572122768,0.06369294,43355.0,43354.0,0.425001]
[1644572122970,0.06369294,43355.0,43354.0,0.309646]
[1644572123571,0.06369294,43355.0,43350.0,0.0001]
[1644572123768,0.06369294,43355.0,43351.0,0.309676]
[1644572123968,0.06369294,43355.0,43350.0,0.0001]
[1644572124368,0.38018043,43353.0,43351.0,0.309678]
[1644572124618,0.28641643,43352.0,43351.0,0.309679]
[1644572124821,0.28641643,43352.0,43350.0,0.0001]
[1644572124822,0.15,43351.0,43350.0,0.0001]
[1644572125019,0.82599065,43351.0,43350.0,0.0001]
[1644572125217,0.87599065,43351.0,43350.0,0.0001]
[1644572126119,0.34105877,43351.0,43350.0,0.0001]
[1644572126725,0.43788043,43353.0,43350.0,0.0001]
[1644572126726,0.00063704,43353.0,43350.0,0.0001]
[1644572127419,0.01140488,43351.0,43350.0,0.0001]
[1644572127620,0.4615851,43351.0,43350.0,0.0001]
[1644572127819,0.83467681,43351.0,43350.0,0.0001]
[1644572128020,0.83317714,43351.0,43350.0,0.0001]
[1644572128276,1.20725164,43351.0,43350.0,0.0001]
[1644572128672,1.15926149,43351.0,43350.0,0.0001]
[1644572128872,1.15926149,43351.0,43350.0,3.308e-05]
[1644572129071,0.78317714,43351.0,43350.0,3.308e-05]
[1644572130174,0.83317714,43351.0,43350.0,3.308e-05]
[1644572131876,0.78317714,43351.0,43350.0,3.308e-05]
[1644572132725,0.83317714,43351.0,43350.0,3.308e-05]
[1644572132926,1.02996349,43351.0,43350.0,3.308e-05]
[1644572133323,0.58171823,43351.0,43350.0,3.308e-05]
[1644572133526,0.38493188,43351.0,43350.0,3.308e-05]
[1644572133726,0.67279114,43351.0,43350.0,3.308e-05]
[1644572134727,0.38493188,43351.0,43350.0,3.308e-05]
[1644572135127,0.67035851,43351.0,43350.0,3.308e-05]
[1644572135772,0.62035851,43351.0,43350.0,3.308e-05]
[1644572135969,0.61957675,43351.0,43350.0,3.308e-05]
[1644572136770,0.66957675,43351.0,43350.0,3.308e-05]
[1644572139371,0.61957675,43351.0,43350.0,3.308e-05]
[1644572139622,0.66957675,43351.0,43350.0,3.308e-05]
[1644572139825,0.33415012,43351.0,43350.0,3.308e-05]
[1644572140022,0.19739852,43353.0,43350.0,3.308e-05]
[1644572140023,0.00061217,43353.0,43350.0,3.308e-05]
[1644572140224,0.00061217,43353.0,43351.0,0.0459]
[1644572140822,0.15868816,43355.0,43351.0,0.42974268]
[1644572141224,0.00061217,43354.0,43351.0,0.42974268]
[1644572142022,0.20740947,43360.0,43351.0,0.42974268]
[1644572142224,0.00061216,43355.0,43351.0,0.58743168]
[1644572142426,0.00061216,43355.0,43352.0,0.309673]
[1644572142626,0.00061216,43355.0,43353.0,0.0459]
[1644572142822,0.00061216,43355.0,43354.0,0.309655]
[1644572143023,0.00061216,43355.0,43354.0,0.355555]
[1644572143283,0.07523384,43362.0,43360.0,0.31961622]
[1644572143476,0.07523384,43362.0,43361.0,0.0459]
[1644572144075,0.20895641,43365.0,43361.0,0.0459]
[1644572144275,0.48950411,43363.0,43361.0,0.0459]
[1644572144478,0.20895641,43365.0,43361.0,0.0459]
[1644572144676,0.20938445,43365.0,43361.0,0.0459]
[1644572145087,0.323527,43364.0,43361.0,0.0459]
[1644572145278,0.47159204,43363.0,43361.0,0.0459]
[1644572145478,0.20938445,43365.0,43361.0,0.0459]
[1644572145781,0.55078334,43363.0,43361.0,0.0459]
[1644572145979,0.35399699,43363.0,43361.0,0.0459]
[1644572146783,0.50206203,43363.0,43361.0,0.0459]
[1644572147023,0.52031335,43362.0,43361.0,0.0459]
[1644572147636,0.29517952,43370.0,43364.0,1.023531]
[1644572147828,0.01,43379.0,43367.0,0.5744]
[1644572147829,0.30517952,43379.0,43367.0,0.5744]
[1644572148026,0.30517952,43379.0,43368.0,0.369394]
[1644572148027,0.15868816,43377.0,43368.0,0.369394]
[1644572148424,0.35702145,43372.0,43368.0,0.369394]
[1644572148625,0.08286397,43370.0,43368.0,0.369394]
[1644572149224,0.08286397,43370.0,43369.0,0.057665]
[1644572149424,0.08286397,43370.0,43369.0,0.413075]
[1644572149624,0.05,43371.0,43369.0,0.413075]
[1644572149824,0.05,43371.0,43370.0,0.323483]
[1644572150026,0.05,43371.0,43370.0,0.369383]
[1644572150875,0.12979084,43371.0,43370.0,0.369383]
[1644572151277,0.05,43371.0,43370.0,0.369383]
[1644572151680,0.63938577,43378.0,43373.0,0.05766582]
[1644572151876,0.34437611,43383.0,43367.0,1.03569]
[1644572151877,0.34437611,43383.0,43374.0,0.0459]
[1644572152078,0.29517952,43382.0,43375.0,0.0459]
[1644572152275,0.29517952,43383.0,43376.0,0.0459]
[1644572152476,0.29517952,43383.0,43377.0,0.0459]
[1644572152477,0.07544711,43382.0,43377.0,0.0459]
[1644572152675,0.07544711,43382.0,43378.0,0.0459]
[1644572152885,0.02,43384.0,43378.0,0.35525]
[1644572153077,0.02,43384.0,43378.0,0.40525]
[1644572153279,0.02,43384.0,43378.0,0.97965]
[1644572153776,0.02,43384.0,43379.0,0.30934]
[1644572153978,0.02,43384.0,43382.0,0.30423707]
[1644572154177,0.02,43384.0,43383.0,0.419368]
[1644572155124,0.02,43384.0,43383.0,0.477013]
[1644572155326,0.02,43384.0,43383.0,0.419368]
[1644572155726,0.02,43384.0,43383.0,0.73618186]
[1644572155925,0.02,43384.0,43383.0,0.419368]
[1644572156125,0.02,43384.0,43383.0,0.477012]
[1644572157327,0.001,43385.0,43383.0,0.477012]
[1644572160784,0.19833329,43384.0,43383.0,0.477012]
[1644572160980,0.19833329,43384.0,43383.0,0.0459]
[1644572161179,0.3976802,43383.0,43381.0,0.057645]
[1644572161379,0.01062312,43382.0,43380.0,0.115289]
[1644572161580,0.19858232,43384.0,43380.0,0.115289]
[1644572162024,0.30229313,43382.0,43380.0,0.115289]
[1644572162425,0.30229313,43382.0,43381.0,0.323531]
[1644572162825,0.00065392,43383.0,43381.0,0.323531]
[1644572163624,0.01062312,43382.0,43381.0,0.323531]
[1644572164725,0.26508242,43383.0,43381.0,0.323531]
[1644572164927,0.01062312,43382.0,43381.0,0.323531]
[1644572165780,0.26508242,43383.0,43381.0,0.323531]
[1644572165979,0.01062312,43382.0,43381.0,0.323531]
[1644572166278,0.19858232,43384.0,43381.0,0.323531]
[1644572166476,0.19858232,43384.0,43381.0,0.431175]
[1644572166477,0.1989866,43384.0,43381.0,0.431175]
[1644572166676,0.1989866,43384.0,43382.0,0.30927]
[1644572166876,0.1989866,43384.0,43383.0,0.0459]
[1644572167277,0.00065331,43384.0,43383.0,0.0459]
[1644572167578,0.19833329,43384.0,43383.0,0.369414]
[1644572167779,0.20895641,43384.0,43383.0,0.369414]
[1644572168180,0.00024903,43387.0,43386.0,0.00055693]
[1644572168381,0.00124903,43388.0,43386.0,0.00055693]
[1644572168581,0.53248741,43387.0,43386.0,0.00055693]
[1644572168779,0.20895641,43387.0,43386.0,0.00055693]
[1644572169632,0.58968885,43387.0,43386.0,0.00055693]
[1644572169832,0.91321985,43387.0,43386.0,0.00055693]
[1644572171236,0.20895641,43387.0,43386.0,0.00055693]
[1644572171834,0.323531,43386.0,43385.0,0.03509045]
[1644572172033,0.20895641,43387.0,43385.0,0.03509045]
[1644572172234,0.323531,43386.0,43385.0,0.03509045]
[1644572175379,0.273531,43386.0,43385.0,0.03509045]
[1644572176486,0.273531,43386.0,43385.0,0.02110515]
[1644572177330,0.61562165,43386.0,43380.0,0.115324]
[1644572177528,0.61562165,43386.0,43375.0,0.00984052]
[1644572177529,0.19833329,43376.0,43375.0,0.00984052]
[1644572177729,0.87632104,43376.0,43375.0,0.00984052]
[1644572177929,1.24372027,43376.0,43375.0,0.00984052]
[1644572178127,0.94141832,43376.0,43375.0,0.00984052]
[1644572178328,0.94141832,43376.0,43375.0,0.009223]
[1644572178329,1.25321067,43376.0,43375.0,0.009223]
[1644572178729,1.40321067,43376.0,43375.0,0.009223]
[1644572178928,1.09141832,43376.0,43374.0,0.08]
[1644572179133,0.323481,43375.0,43374.0,0.08]
[1644572179329,0.65282507,43375.0,43374.0,0.08]
[1644572179535,0.71051007,43375.0,43374.0,0.08]
[1644572179732,0.65282507,43375.0,43374.0,0.08]
[1644572180877,0.93648612,43375.0,43374.0,0.08]
[1644572181276,1.00412839,43375.0,43374.0,0.08]
[1644572182376,0.93648612,43375.0,43374.0,0.08]
[1644572182777,0.65282507,43375.0,43374.0,0.08]
[1644572183780,0.323481,43375.0,43374.0,0.08]
[1644572186029,0.58622509,43375.0,43374.0,0.08]
[1644572186229,0.323481,43375.0,43374.0,0.08]
[1644572186533,0.00024903,43377.0,43376.0,0.08]
[1644572186736,0.00024903,43378.0,43377.0,0.403481]
[1644572186929,0.19833329,43384.0,43377.0,0.403481]
[1644572186930,0.19858232,43381.0,43377.0,0.449381]
[1644572187130,0.19833329,43381.0,43377.0,0.507034]
[1644572187431,0.19833329,43381.0,43380.0,0.37190863]
[1644572187629,0.19833329,43381.0,43380.0,0.74128963]
[1644572188302,0.19858232,43385.0,43384.0,0.08]
[1644572188589,0.19833329,43385.0,43384.0,0.449381]
[1644572188785,0.19833329,43385.0,43384.0,0.499381]
[1644572189786,0.19833329,43385.0,43384.0,0.449381]
[1644572190386,0.00024903,43387.0,43386.0,0.08]
[1644572190588,0.00071741,43388.0,43386.0,0.99810305]
[1644572190787,0.00046838,43388.0,43387.0,1.30360535]
[1644572190986,0.00046838,43388.0,43387.0,1.34950535]
[1644572191187,0.00046838,43388.0,43387.0,1.44950535]
[1644572191590,0.011,43389.0,43387.0,1.85354206]
[1644572191786,0.011,43389.0,43388.0,1.29871678]
[1644572192039,0.011,43389.0,43388.0,1.20926258]
[1644572192436,0.0083259,43389.0,43388.0,1.20926258]
[1644572192637,0.00068857,43390.0,43389.0,0.323481]
[1644572192837,0.29477895,43395.0,43389.0,0.82586633]
[1644572193036,0.00046828,43391.0,43389.0,0.82586633]
[1644572193236,0.00024903,43395.0,43390.0,0.64324567]
[1644572193438,0.00024903,43394.0,43391.0,0.484639]
[1644572193638,0.00024903,43395.0,43391.0,0.534639]
[1644572193937,0.29477895,43396.0,43395.0,0.69476355]
[1644572194137,0.29477895,43396.0,43395.0,1.04639279]
[1644572194438,0.0002443,43398.0,43397.0,0.323481]
[1644572194641,0.30477895,43399.0,43398.0,0.057626]
[1644572194937,0.30477895,43399.0,43398.0,0.427007]
[1644572195238,0.34415307,43401.0,43398.0,0.427007]
[1644572195437,0.34390877,43401.0,43399.0,0.323481]
[1644572195637,0.34390877,43401.0,43400.0,0.0459]
[1644572195878,0.19833329,43401.0,43400.0,0.369381]
[1644572196477,0.0002443,43403.0,43400.0,0.369381]
[1644572196677,0.34390877,43404.0,43400.0,0.369381]
[1644572197077,0.34390877,43404.0,43402.0,0.381105]
[1644572197281,0.34415307,43404.0,43403.0,0.369381]
[1644572197480,0.33401812,43404.0,43402.0,0.057624]
[1644572197679,0.33401812,43404.0,43403.0,0.0459]
[1644572197881,0.42192079,43404.0,43403.0,0.0459]
[1644572198080,0.67814284,43404.0,43403.0,0.0459]
[1644572198279,0.4219187,43404.0,43403.0,0.0459]
[1644572198479,0.3547459,43404.0,43403.0,0.0459]
[1644572198683,0.33401812,43404.0,43403.0,0.0459]
[1644572199526,0.01062312,43404.0,43403.0,0.0459]
[1644572199729,0.19899916,43406.0,43403.0,0.369295]
[1644572199730,0.00091017,43406.0,43403.0,0.369295]
[1644572199935,0.0002443,43407.0,43405.0,0.5744]
[1644572200129,0.01,43409.0,43407.0,0.05761]
[1644572200328,0.01,43409.0,43408.0,0.369254]
[1644572200527,0.01,43409.0,43408.0,0.419254]
[1644572204591,0.01,43409.0,43408.0,0.469254]
[1644572204788,0.01,43409.0,43408.0,1.45357312]
[1644572204991,0.01,43409.0,43408.0,0.993654]
[1644572205190,0.01,43409.0,43408.0,1.3072659]
[1644572205389,0.00990661,43409.0,43408.0,0.993654]
[1644572205588,0.00060633,43411.0,43408.0,0.993654]
[1644572205790,0.00060633,43411.0,43410.0,0.838497]
[1644572205991,0.02,43414.0,43410.0,0.934397]
[1644572206192,0.02,43414.0,43413.0,0.947714]
[1644572206391,0.02,43414.0,43413.0,0.993614]
[1644572206592,0.31501862,43414.0,43413.0,0.993614]
[1644572207027,0.02,43414.0,43413.0,0.993614]
[1644572207430,0.02,43414.0,43413.0,0.943614]
[1644572209332,0.02,43414.0,43413.0,0.993614]
[1644572210984,0.02,43414.0,43413.0,0.419214]
[1644572211583,0.03062312,43414.0,43413.0,0.419214]
[1644572212188,0.02,43414.0,43413.0,0.419214]
[1644572213285,0.03062312,43414.0,43413.0,0.419214]
[1644572214286,0.02,43414.0,43413.0,0.419214]
[1644572214574,0.3658,43428.0,43415.0,0.264063]
[1644572214771,0.3658,43428.0,43413.0,0.37553]
[1644572214772,0.37642312,43428.0,43416.0,0.211095]
[1644572215008,0.01086748,43428.0,43417.0,0.0459]
[1644572215175,0.01086748,43428.0,43419.0,0.05760099]
[1644572215176,0.28067406,43420.0,43419.0,0.05760099]
[1644572215372,0.01062312,43420.0,43419.0,0.369295]
[1644572215575,0.29400596,43420.0,43419.0,0.369295]
[1644572215772,0.29400596,43420.0,43419.0,0.33950175]
[1644572215975,0.29400596,43420.0,43419.0,0.45470275]
[1644572216174,0.20895641,43420.0,43419.0,0.45470275]
[1644572216874,0.00085808,43422.0,43421.0,0.263891]
[1644572217076,0.00024436,43423.0,43421.0,0.309791]
[1644572217375,0.00061374,43422.0,43421.0,0.309791]
[1644572217981,0.00061374,43422.0,43421.0,0.367389]
[1644572218179,0.00024436,43424.0,43421.0,0.367389]
[1644572218380,0.00042806,43424.0,43423.0,0.293581]
[1644572219278,0.00042806,43424.0,43423.0,0.35117665]
[1644572219482,0.00024436,43428.0,43424.0,0.057592]
[1644572219681,0.00067242,43426.0,43424.0,0.371461]
[1644572219878,0.00067242,43426.0,43425.0,0.0459]
[1644572219879,0.00042806,43426.0,43425.0,0.0459]
[1644572220080,0.00042806,43426.0,43425.0,0.339464]
[1644572220580,0.00024436,43428.0,43425.0,0.339464]
[1644572220782,0.01124436,43429.0,43426.0,0.263858]
[1644572220980,0.00066111,43428.0,43426.0,0.309758]
[1644572221180,0.20895641,43427.0,43426.0,0.309758]
[1644572221379,0.00066111,43428.0,43426.0,0.309758]
[1644572221780,0.01124436,43429.0,43426.0,0.359758]
[1644572222030,0.01166111,43429.0,43426.0,0.0959]
[1644572222230,0.01166111,43429.0,43426.0,0.0459]
[1644572222429,0.01166111,43429.0,43427.0,0.323347]
[1644572222631,0.01166111,43429.0,43428.0,0.0459]
[1644572222830,0.01166111,43429.0,43428.0,0.279947]
[1644572223030,0.011,43429.0,43428.0,0.0459]
[1644572226478,0.011,43429.0,43428.0,0.279947]
[1644572227080,0.011,43429.0,43428.0,0.68617859]
[1644572227280,0.011,43429.0,43428.0,1.36057859]
[1644572227680,0.00343862,43437.0,43429.0,0.323331]
[1644572227881,0.001,43437.0,43432.0,0.05757187]
[1644572228080,0.00346017,43437.0,43436.0,0.34639914]
[1644572228382,0.00346017,43437.0,43436.0,0.65570225]
[1644572229080,0.001,43437.0,43436.0,0.65570225]
[1644572229280,0.001,43437.0,43436.0,0.88970225]
[1644572229529,0.001,43437.0,43436.0,0.65570225]
[1644572229930,0.001,43437.0,43436.0,0.31634724]
[1644572230332,0.001,43437.0,43436.0,0.86053654]
[1644572230531,0.001,43437.0,43436.0,0.62653654]
[1644572231631,0.001,43437.0,43436.0,0.72653654]
[1644572232235,0.0119344,43439.0,43438.0,0.323259]
[1644572232431,0.0119344,43439.0,43438.0,0.4843051]
[1644572232432,0.01168994,43439.0,43438.0,0.4843051]
[1644572232630,0.01168994,43439.0,43438.0,0.5843051]
[1644572232830,0.011,43439.0,43438.0,0.5843051]
[1644572233290,0.21995641,43439.0,43438.0,0.5843051]
[1644572233480,0.011,43439.0,43438.0,0.5343051]
[1644572234080,0.00124446,43441.0,43438.0,0.5343051]
[1644572234283,0.00168993,43441.0,43439.0,0.59521656]
[1644572234485,0.00124446,43442.0,43440.0,0.651]
[1644572234681,0.02062312,43459.0,43440.0,0.651]
[1644572234682,0.01,43459.0,43443.0,0.45]
[1644572234883,0.01,43459.0,43446.0,0.5744]
[1644572235081,0.01,43459.0,43458.0,0.33620661]
[1644572235284,0.01,43459.0,43458.0,0.48117661]
[1644572235485,0.01,43459.0,43458.0,0.91206761]
[1644572235882,0.20895641,43462.0,43458.0,0.91206761]
[1644572236083,0.20895641,43462.0,43459.0,0.233606]
[1644572236286,0.20895641,43462.0,43460.0,0.0459]
[1644572236585,0.20956645,43462.0,43460.0,0.0459]
[1644572236783,0.20956645,43462.0,43460.0,0.103444]
[1644572237029,0.20956645,43462.0,43461.0,0.323347]
[1644572237230,0.20956645,43462.0,43461.0,0.369247]
[1644572237631,0.20956645,43462.0,43461.0,0.419247]
[1644572237632,0.20895641,43462.0,43461.0,0.419247]
[1644572238229,0.20895641,43462.0,43461.0,0.38128785]
[1644572239831,0.20895641,43462.0,43461.0,0.33128785]
[1644572240534,0.00067608,43464.0,43461.0,0.76972073]
[1644572240799,0.00067608,43464.0,43462.0,0.392936]
[1644572240992,0.00067608,43464.0,43463.0,0.279458]
[1644572241191,0.01062312,43474.0,43463.0,0.329458]
[1644572241394,0.01062312,43474.0,43465.0,0.457981]
[1644572241395,0.34118784,43474.0,43465.0,0.457981]
[1644572241591,0.34118784,43474.0,43467.0,0.233534]
[1644572241592,0.0027039,43471.0,43467.0,0.233534]
[1644572241791,0.01062312,43470.0,43468.0,0.331254]
[1644572242493,0.14806504,43478.0,43468.0,0.331254]
[1644572242494,0.1158,43480.0,43468.0,0.381254]
[1644572242692,0.01062312,43470.0,43468.0,0.481254]
[1644572242896,0.00092193,43471.0,43468.0,0.481254]
[1644572243093,0.45,43468.0,43466.0,0.2876714]
[1644572243295,0.21895641,43469.0,43466.0,0.2876714]
[1644572243296,0.29071451,43469.0,43466.0,0.2876714]
[1644572243493,0.43205214,43468.0,43466.0,0.172602]
[1644572243693,0.21895641,43469.0,43466.0,0.406145]
[1644572243898,0.01024588,43469.0,43467.0,0.233537]
[1644572244095,0.01024588,43469.0,43467.0,0.291073]
[1644572244096,0.01065473,43469.0,43467.0,0.291073]
[1644572244294,0.01065473,43469.0,43468.0,0.27943]
[1644572244731,0.02127785,43469.0,43468.0,0.58991331]
[1644572244930,0.02062312,43469.0,43468.0,0.58991331]
[1644572245333,0.02062312,43469.0,43468.0,0.78991331]
[1644572245731,0.21895641,43469.0,43468.0,0.32943]
[1644572247832,0.21895641,43469.0,43468.0,0.27943]
[1644572248681,0.21895641,43469.0,43468.0,0.32943]
[1644572249282,0.21895641,43469.0,43468.0,0.28353]
[1644572249483,0.02062312,43469.0,43468.0,0.28353]
[1644572249882,0.02062312,43469.0,43468.0,0.23353]
[1644572250584,0.02062312,43469.0,43467.0,0.107536]
[1644572250781,0.02062312,43469.0,43467.0,0.057536]
[1644572250983,0.02062312,43469.0,43468.0,0.23353]
[1644572251587,0.01,43469.0,43468.0,0.23353]
[1644572251784,0.01,43469.0,43468.0,0.33079]
[1644572252238,0.14806504,43478.0,43468.0,0.33079]
[1644572252239,0.00024588,43473.0,43468.0,0.50027]
[1644572252438,0.01,43479.0,43468.0,0.50027]
[1644572252439,0.00090247,43471.0,43470.0,0.29104]
[1644572252639,0.00262597,43477.0,43470.0,0.71525209]
[1644572252843,0.01062312,43473.0,43472.0,0.233504]
[1644572253037,0.01062312,43473.0,43472.0,0.279404]
[1644572253238,0.00024588,43475.0,43472.0,0.279404]
[1644572253438,0.00024588,43476.0,43473.0,0.107524]
[1644572253636,0.00024588,43478.0,43475.0,0.233482]
[1644572253837,0.01062312,43478.0,43476.0,0.0459]
[1644572254037,0.01062312,43478.0,43477.0,0.23347]
[1644572254239,0.01062312,43478.0,43477.0,0.0459]
[1644572254638,0.02062312,43479.0,43477.0,0.279369]
[1644572254837,0.02062312,43479.0,43477.0,0.0459]
[1644572255039,0.02062312,43479.0,43478.0,0.233463]
[1644572255239,0.01,43479.0,43478.0,0.368103]
[1644572256482,0.02062312,43479.0,43478.0,0.368103]
[1644572256682,0.01,43479.0,43478.0,0.418103]
[1644572256886,0.02062312,43479.0,43478.0,0.418103]
[1644572257683,0.02062312,43479.0,43478.0,0.368103]
[1644572257887,0.02062312,43479.0,43478.0,0.279363]
[1644572259286,0.01,43479.0,43478.0,0.279363]
[1644572259531,0.02062312,43479.0,43478.0,0.279363]
[1644572260129,0.02062312,43479.0,43478.0,0.329363]
[1644572260830,0.01,43479.0,43478.0,0.329363]
[1644572261331,0.005,43479.0,43478.0,0.329363]
[1644572261731,0.005,43479.0,43476.0,0.057525]
[1644572261932,0.005,43479.0,43477.0,0.233468]
[1644572262134,0.005,43479.0,43477.0,0.283468]
[1644572262332,0.005,43479.0,43478.0,0.233463]
[1644572262930,0.01562312,43479.0,43478.0,0.233463]
[1644572263383,0.005,43479.0,43478.0,0.233463]
[1644572264482,0.005,43479.0,43477.0,0.05]
[1644572264684,0.005,43479.0,43478.0,0.233463]
[1644572264883,0.005,43479.0,43477.0,0.05]
[1644572265083,0.005,43479.0,43478.0,0.233463]
[1644572265983,0.20333329,43479.0,43478.0,0.233463]
[1644572266184,0.20333329,43479.0,43477.0,0.283469]
[1644572266386,0.28537714,43478.0,43477.0,0.283469]
[1644572266786,0.28537714,43478.0,43477.0,0.233469]
[1644572267230,0.43344218,43478.0,43477.0,0.233469]
[1644572268030,0.28537714,43478.0,43477.0,0.233469]
[1644572269230,0.28537714,43478.0,43477.0,0.283469]
[1644572269833,0.28537714,43478.0,43477.0,0.233469]
[1644572270333,0.43344218,43478.0,43477.0,0.233469]
[1644572271179,0.43344218,43478.0,43477.0,0.18694384]
[1644572271783,0.43344218,43478.0,43477.0,0.186946]
[1644572271983,0.005,43479.0,43477.0,0.186946]
[1644572273186,0.33529167,43479.0,43477.0,0.186946]
[1644572273485,0.48335671,43479.0,43477.0,0.186946]
[1644572273683,0.48335671,43479.0,43477.0,0.186945]
[1644572273883,0.48335671,43479.0,43476.0,0.057525]
[1644572273884,0.34639833,43477.0,43476.0,0.18695]
[1644572274084,0.34639833,43477.0,43475.0,0.302006]
[1644572274085,0.53314959,43477.0,43475.0,0.302006]
[1644572274284,0.54377271,43477.0,43475.0,0.11505]
[1644572275233,0.35702145,43477.0,43475.0,0.11505]
[1644572275532,0.35702145,43477.0,43475.0,0.302007]
[1644572275733,0.35702145,43477.0,43475.0,0.11505]
[1644572277035,0.20895641,43477.0,43475.0,0.302007]
[1644572277234,0.20895641,43477.0,43476.0,0.186952]
[1644572277434,0.20895641,43477.0,43475.0,0.0696788]
[1644572277638,0.01062312,43477.0,43475.0,0.0696788]
[1644572277836,0.19833329,43476.0,43475.0,0.0696788]
[1644572278284,0.01062312,43477.0,43475.0,0.12720797]
[1644572278479,0.01062312,43477.0,43475.0,0.0696788]
[1644572278680,0.15868816,43477.0,43475.0,0.0696788]
[1644572278879,0.19833329,43476.0,43475.0,0.0696788]
[1644572279683,0.15868816,43477.0,43475.0,0.0696788]
[1644572279881,0.01062312,43477.0,43475.0,0.0696788]
[1644572281282,0.19833329,43476.0,43475.0,0.0696788]
[1644572281482,0.01062312,43477.0,43475.0,0.0696788]
[1644572281882,0.29036289,43478.0,43475.0,0.0696788]
[1644572282128,0.29060875,43478.0,43475.0,0.0696788]
[1644572282331,0.2896998,43478.0,43475.0,0.0696788]
[1644572282530,0.15397399,43479.0,43471.0,0.14930075]
[1644572282730,0.19633328,43473.0,43472.0,0.0459]
[1644572282935,0.2454166,43476.0,43473.0,0.65]
[1644572283238,0.2454166,43484.0,43475.0,1.5244]
[1644572283432,0.2454166,43487.0,43482.0,0.5744]
[1644572283733,0.2454166,43488.0,43485.0,0.057499]
[1644572284036,0.2454166,43488.0,43486.0,0.0459]
[1644572284231,0.2454166,43487.0,43486.0,0.103399]
[1644572284433,0.01,43489.0,43486.0,0.103399]
[1644572284932,0.01,43489.0,43486.0,0.160905]
[1644572285132,0.01064042,43489.0,43486.0,0.160905]
[1644572285634,0.01064042,43489.0,43488.0,0.057509]
[1644572285883,0.01064042,43489.0,43488.0,0.103409]
[1644572286084,0.01,43489.0,43488.0,0.40253067]
[1644572287285,0.2454166,43494.0,43489.0,0.55]
[1644572287490,0.2454166,43498.0,43490.0,0.27589]
[1644572287685,0.00256127,43497.0,43491.0,0.33839113]
[1644572287887,0.00256127,43497.0,43492.0,0.0459]
[1644572288289,0.00256127,43497.0,43493.0,0.61823984]
[1644572288488,0.00256127,43497.0,43495.0,0.057492]
[1644572288686,0.2554166,43499.0,43496.0,0.0459]
[1644572289186,0.01,43499.0,43496.0,0.0459]
[1644572289387,0.01,43499.0,43497.0,0.057496]
[1644572289639,0.02002413,43506.0,43498.0,0.710872]
[1644572289836,0.02002413,43506.0,43498.0,1.607717]
[1644572290034,0.02002413,43506.0,43500.0,0.11495877]